fUST/lending_fUST_20250429
["ID","MTS","AMOUNT","RATE_DAILY","PERIOD"]
[359323260,1745922632887,-500.0,0.00035615,2]
[359323261,1745922632896,-500.0,0.00035615,2]
[359323262,1745922632905,-500.0,0.00035615,2]
[359323263,1745922633091,-500.0,0.00035615,2]
[359323264,1745922633102,-500.0,0.00035615,2]
[359323265,1745922633112,-500.0,0.00035615,2]
[359323266,1745922633121,-500.0,0.00035615,2]
[359323267,1745922633132,-500.0,0.00035615,2]
[359323268,1745922633142,-500.0,0.00035615,2]
[359323269,1745922633155,-500.0,0.00035615,2]
[359323270,1745922633164,-500.0,0.00035615,2]
[359323271,1745922633174,-500.0,0.00035615,2]
[359323272,1745922633184,-500.0,0.00035615,2]
[359323273,1745922633195,-500.0,0.00035615,2]
[359323274,1745922633206,-500.0,0.00035615,2]
[359323275,1745922633216,-500.0,0.00035615,2]
[359323276,1745922633227,-500.0,0.00035615,2]
[359323277,1745922633237,-500.0,0.00035615,2]
[359323278,1745922633247,-500.0,0.00035615,2]
[359323279,1745922633258,-500.0,0.00035615,2]
[359323280,1745922633267,-500.0,0.00035615,2]
[359323281,1745922633278,-170.33960365,0.00035615,7]
[359323282,1745922633287,-500.0,0.00035615,2]
[359323283,1745922633298,-500.0,0.00035615,2]
[359323284,1745922633307,-500.0,0.00035615,2]
[359323285,1745922633317,-500.0,0.00035615,2]
[359323286,1745922633327,-500.0,0.00035615,2]
[359323287,1745922633337,-500.0,0.00035615,2]
[359323288,1745922633347,-500.0,0.00035615,2]
[359323289,1745922633358,-500.0,0.00035615,2]
[359323290,1745922633368,-500.0,0.00035615,2]
[359323291,1745922633378,-500.0,0.00035615,2]
[359323292,1745922633387,-500.0,0.00035615,2]
[359323293,1745922633397,-500.0,0.00035615,2]
[359323294,1745922633407,-500.0,0.00035615,2]
[359323295,1745922633417,-500.0,0.00035615,2]
[359323296,1745922633427,-500.0,0.00035615,2]
[359323297,1745922633437,-500.0,0.00035615,2]
[359323298,1745922633447,-500.0,0.00035615,2]
[359323299,1745922633457,-500.0,0.00035615,2]
[359323300,1745922633466,-500.0,0.00035615,2]
[359323301,1745922633476,-500.0,0.00035615,2]
[359323302,1745922633487,-500.0,0.00035615,2]
[359323303,1745922633497,-105.47365206,0.00035615,2]
[359323304,1745922633511,-394.52634794,0.00035615,2]
[359323305,1745922633521,-158.23288005,0.00035615,2]
[359323306,1745922633532,-500.0,0.00035615,2]
[359323307,1745922633542,-500.0,0.00035615,2]
[359323308,1745922633552,-500.0,0.00035615,2]
[359323309,1745922633561,-500.0,0.00035615,2]
[359323310,1745922633571,-500.0,0.00035615,2]
[359323311,1745922633581,-500.0,0.00035615,2]
[359323312,1745922633590,-500.0,0.00035615,2]
[359323313,1745922633600,-500.0,0.00035615,2]
[359323314,1745922633610,-500.0,0.00035615,2]
[359323315,1745922633621,-500.0,0.00035615,2]
[359323316,1745922633630,-500.0,0.00035615,2]
[359323317,1745922633641,-500.0,0.00035615,2]
[359323318,1745922633651,-500.0,0.00035615,2]
[359323319,1745922633662,-500.0,0.00035615,2]
[359323320,1745922633672,-500.0,0.00035615,2]
[359323321,1745922633682,-500.0,0.00035615,2]
[359323322,1745922633692,-500.0,0.00035615,2]
[359323323,1745922633702,-500.0,0.00035615,2]
[359323324,1745922633713,-500.0,0.00035615,2]
[359323325,1745922633723,-500.0,0.00035615,2]
[359323326,1745922633733,-500.0,0.00035615,2]
[359323327,1745922633743,-500.0,0.00035615,2]
[359323328,1745922633753,-500.0,0.00035615,2]
[359323329,1745922633763,-500.0,0.00035615,2]
[359323330,1745922633773,-500.0,0.00035615,2]
[359323331,1745922633783,-500.0,0.00035615,2]
[359323332,1745922633794,-600.0,0.00035615,2]
[359323333,1745922633804,-607.58563901,0.00035615,7]
[359323334,1745922633814,-239.26407476,0.00035615,7]
[359323335,1745922633823,-163.74788926,0.00035615,7]
[359323336,1745922633833,-158.451,0.00035615,42]
[359323337,1745922633842,-500.0,0.00035615,2]
[359323338,1745922633852,-316.45056469,0.00035615,7]
[359323339,1745922633862,-500.0,0.00035615,7]
[359323340,1745922633871,-500.0,0.00035615,2]
[359323341,1745922633881,-500.0,0.00035615,7]
[359323342,1745922633891,-611.30564329,0.00035615,7]
[359323343,1745922633901,-179.03396036,0.00035615,7]
[359323344,1745922633911,-1072.23214828,0.00035615,2]
[359323345,1745922633921,-1072.23214828,0.00035615,2]
[359323346,1745922633931,-294.73971981,0.00035615,7]
[359323347,1745922633941,-1072.23214828,0.00035615,2]
[359323348,1745922633951,-1072.23214828,0.00035615,2]
[359323349,1745922633960,-1072.23214828,0.00035615,2]
[359323350,1745922633970,-1072.23214828,0.00035615,2]
[359323351,1745922633980,-1072.23214828,0.00035615,2]
[359323352,1745922633990,-1072.23214828,0.00035615,2]
[359323353,1745922634000,-214.09413375,0.00035615,7]
[359323354,1745922634010,-400.0,0.00035616,3]
[359323355,1745922634019,-400.0,0.00035616,3]
[359323356,1745922634029,-418.16300832,0.00035616,3]
[359323357,1745922634039,-400.0,0.00035616,3]
[359323358,1745922634048,-400.0,0.00035616,3]
[359323359,1745922634057,-400.0,0.00035616,3]
[359323360,1745922634067,-400.0,0.00035616,3]
[359323361,1745922634077,-400.0,0.00035616,3]
[359323362,1745922634087,-400.0,0.00035616,3]
[359323363,1745922634096,-921.52,0.00035616,3]
[359323364,1745922634106,-400.0,0.00035616,3]
[359323365,1745922634116,-317.19750928,0.00035616,3]
[359323366,1745922634125,-400.0,0.00035616,3]
[359323367,1745922634135,-545.79682645,0.00035616,3]
[359323368,1745922634145,-400.0,0.00035616,3]
[359323369,1745922634158,-400.0,0.00035616,3]
[359323370,1745922634168,-400.0,0.00035616,3]
[359323371,1745922634179,-400.0,0.00035616,3]
[359323372,1745922634188,-400.0,0.00035616,3]
[359323373,1745922634199,-400.0,0.00035616,3]
[359323374,1745922634208,-549.03962366,0.00035616,3]
[359323375,1745922634218,-488.73,0.00035616,3]
[359323376,1745922634228,-400.0,0.00035616,3]
[359323377,1745922634238,-400.0,0.00035616,3]
[359323378,1745922634248,-400.0,0.00035616,3]
[359323379,1745922634257,-400.0,0.00035616,3]
[359323380,1745922634267,-400.0,0.00035616,3]
[359323381,1745922634277,-450.34,0.00035616,3]
[359323382,1745922634287,-172.13084738,0.00035616,3]
[359323383,1745922634296,-327.99680779,0.00035616,3]
[359323384,1745922634305,-500.0,0.00035616,3]
[359323385,1745922634315,-412.45036145,0.00035616,3]
[359323386,1745922634324,-400.0,0.00035616,3]
[359323387,1745922634334,-400.0,0.00035616,3]
[359323388,1745922634343,-400.0,0.00035616,3]
[359323389,1745922634353,-400.0,0.00035616,3]
[359323390,1745922634362,-400.0,0.00035616,3]
[359323391,1745922634372,-411.76176644,0.00035616,3]
[359323392,1745922634381,-499.92472539,0.00035616,3]
[359323393,1745922634391,-822.58,0.00035616,3]
[359323394,1745922634401,-400.0,0.00035616,3]
[359323395,1745922634412,-308.11783102,0.00035616,3]
[359323396,1745922634421,-320.20732698,0.00035616,3]
[359323397,1745922634431,-698.7,0.00035616,3]
[359323398,1745922634441,-420.74890006,0.00035616,3]
[359323399,1745922634452,-499.49,0.00035616,3]
[359323400,1745922634463,-306.58513866,0.00035616,3]
[359323401,1745922634473,-400.0,0.00035616,3]
[359323402,1745922634482,-500.67,0.00035616,3]
[359323403,1745922634495,-400.0,0.00035616,3]
[359323404,1745922634505,-1233.26,0.00035616,3]
[359323405,1745922634516,-419.09,0.00035616,3]
[359323406,1745922634527,-400.0,0.00035616,3]
[359323407,1745922634538,-470.66,0.00035616,3]
[359323408,1745922634548,-304.79583383,0.00035616,3]
[359323409,1745922634559,-255.88876964,0.00035616,3]
[359323410,1745922634569,-310.13997927,0.00035616,3]
[359323411,1745922634579,-400.0,0.00035616,3]
[359323412,1745922634589,-1768.02,0.00035616,3]
[359323413,1745922634600,-400.0,0.00035616,3]
[359323414,1745922634610,-292.93338557,0.00035616,3]
[359323415,1745922634621,-329.95767972,0.00035616,3]
[359323416,1745922634631,-453.13,0.00035616,3]
[359323417,1745922634641,-872.56,0.00035616,3]
[359323418,1745922634651,-453.42,0.00035616,3]
[359323419,1745922634661,-207.35973532,0.00035616,3]
[359323420,1745922634671,-893.97,0.00035616,3]
[359323421,1745922634681,-1230.14,0.00035616,3]
[359323422,1745922634691,-400.0,0.00035616,3]
[359323423,1745922634701,-400.0,0.00035616,3]
[359323424,1745922634711,-400.0,0.00035616,3]
[359323425,1745922634720,-501.34674109,0.00035616,3]
[359323426,1745922634729,-400.0,0.00035616,3]
[359323427,1745922634739,-731.54,0.00035616,3]
[359323428,1745922634749,-409.90776413,0.00035616,3]
[359323429,1745922634758,-405.37739261,0.00035616,3]
[359323430,1745922634768,-303.32708975,0.00035616,3]
[359323431,1745922634778,-613.33,0.00035616,3]
[359323432,1745922634787,-390.65966051,0.00035616,3]
[359323433,1745922634797,-815.63,0.00035616,3]
[359323434,1745922634807,-307.43136891,0.00035616,3]
[359323435,1745922634817,-400.0,0.00035616,3]
[359323436,1745922634827,-400.0,0.00035616,3]
[359323437,1745922634836,-302.95824274,0.00035616,3]
[359323438,1745922634845,-400.0,0.00035616,3]
[359323439,1745922634854,-400.0,0.00035616,3]
[359323440,1745922634864,-661.18,0.00035616,3]
[359323441,1745922634873,-500.0,0.00035616,3]
[359323442,1745922634883,-400.0,0.00035616,3]
[359323443,1745922634892,-400.0,0.00035616,3]
[359323444,1745922634901,-400.0,0.00035616,3]
[359323445,1745922634911,-400.0,0.00035616,3]
[359323446,1745922634921,-400.0,0.00035616,3]
[359323447,1745922634931,-503.71114252,0.00035616,3]
[359323448,1745922634940,-500.0,0.00035616,3]
[359323449,1745922634951,-400.0,0.00035616,3]
[359323450,1745922634961,-614.38,0.00035616,3]
[359323451,1745922634971,-309.12920953,0.00035616,3]
[359323452,1745922634980,-501.792626,0.00035616,3]
[359323453,1745922634990,-710.68,0.00035616,3]
[359323454,1745922634999,-400.0,0.00035616,3]
[359323455,1745922635010,-400.0,0.00035616,3]
[359323456,1745922635019,-400.0,0.00035616,3]
[359323457,1745922635030,-400.0,0.00035616,3]
[359323458,1745922635040,-400.0,0.00035616,3]
[359323459,1745922635049,-400.0,0.00035616,3]
[359323460,1745922635059,-778.75,0.00035616,3]
[359323461,1745922635068,-843.15,0.00035616,3]
[359323462,1745922635078,-507.14,0.00035616,3]
[359323463,1745922635087,-308.97883071,0.00035616,3]
[359323464,1745922635097,-461.31,0.00035616,3]
[359323465,1745922635107,-737.6,0.00035616,3]
[359323466,1745922635116,-400.0,0.00035616,3]
[359323467,1745922635127,-400.0,0.00035616,3]
[359323468,1745922635136,-500.0,0.00035616,3]
[359323469,1745922635146,-400.0,0.00035616,3]
[359323470,1745922635159,-400.0,0.00035616,3]
[359323471,1745922635168,-579.37,0.00035616,3]
[359323472,1745922635178,-310.08016073,0.00035616,3]
[359323473,1745922635187,-400.0,0.00035616,3]
[359323474,1745922635197,-151.0,0.00035616,3]
[359323475,1745922635207,-1129.43,0.00035616,3]
[359323476,1745922635216,-310.28223005,0.00035616,3]
[359323477,1745922635225,-400.0,0.00035616,3]
[359323478,1745922635237,-305.21976209,0.00035616,3]
[359323479,1745922635247,-2744.68,0.00035616,3]
[359323480,1745922635257,-507.62,0.00035616,3]
[359323481,1745922635270,-400.0,0.00035616,3]
[359323482,1745922635280,-319.3634542,0.00035616,3]
[359323483,1745922635291,-1676.05,0.00035616,3]
[359323484,1745922635302,-679.62,0.00035616,3]
[359323485,1745922635311,-729.42,0.00035616,3]
[359323486,1745922635321,-400.0,0.00035616,3]
[359323487,1745922635331,-472.57,0.00035616,3]
[359323488,1745922635340,-400.0,0.00035616,3]
[359323489,1745922635349,-400.0,0.00035616,3]
[359323490,1745922635358,-4983.69,0.00035616,3]
[359323491,1745922635369,-500.0,0.00035616,3]
[359323492,1745922635378,-1094.83,0.00035616,3]
[359323493,1745922635388,-400.0,0.00035616,3]
[359323494,1745922635398,-400.0,0.00035616,3]
[359323495,1745922635409,-539.41,0.00035616,3]
[359323496,1745922635418,-303.22823302,0.00035616,3]
[359323497,1745922635427,-400.0,0.00035616,3]
[359323498,1745922635437,-500.0,0.00035616,3]
[359323499,1745922635446,-400.0,0.00035616,3]
[359323500,1745922635457,-400.0,0.00035616,3]
[359323501,1745922635467,-429.03,0.00035616,3]
[359323502,1745922635478,-400.0,0.00035616,3]
[359323503,1745922635487,-1569.51,0.00035616,3]
[359323504,1745922635497,-400.0,0.00035616,3]
[359323505,1745922635507,-400.0,0.00035616,3]
[359323506,1745922635516,-400.0,0.00035616,3]
[359323507,1745922635526,-400.0,0.00035616,3]
[359323508,1745922635535,-400.0,0.00035616,3]
[359323509,1745922635544,-400.0,0.00035616,3]
[359323510,1745922635554,-582.57,0.00035616,3]
[359323511,1745922635564,-400.0,0.00035616,3]
[359323512,1745922635574,-500.0,0.00035616,3]
[359323513,1745922635584,-400.0,0.00035616,3]
[359323514,1745922635629,-400.0,0.00035616,3]
[359323515,1745922635639,-1968.53,0.00035616,3]
[359323516,1745922635648,-504.7468304,0.00035616,3]
[359323517,1745922635657,-621.56,0.00035616,3]
[359323518,1745922635667,-400.0,0.00035616,3]
[359323519,1745922635676,-2132.49,0.00035616,3]
[359323520,1745922635685,-814.03,0.00035616,3]
[359323521,1745922635694,-400.0,0.00035616,3]
[359323522,1745922635705,-400.0,0.00035616,3]
[359323523,1745922635715,-400.0,0.00035616,3]
[359323524,1745922635725,-2463.28,0.00035616,3]
[359323525,1745922635734,-805.39,0.00035616,3]
[359323526,1745922635743,-503.4894132,0.00035616,3]
[359323527,1745922635752,-400.0,0.00035616,3]
[359323528,1745922635763,-704.17,0.00035616,3]
[359323529,1745922635773,-400.0,0.00035616,3]
[359323530,1745922635782,-658.92,0.00035616,3]
[359323531,1745922635792,-407.3374092,0.00035616,3]
[359323532,1745922635801,-502.12419514,0.00035616,3]
[359323533,1745922635810,-400.0,0.00035616,3]
[359323534,1745922635819,-500.0,0.00035616,3]
[359323535,1745922635829,-400.0,0.00035616,3]
[359323536,1745922635838,-861.58,0.00035616,3]
[359323537,1745922635848,-1060.71,0.00035616,3]
[359323538,1745922635858,-400.0,0.00035616,3]
[359323539,1745922635867,-622.88,0.00035616,3]
[359323540,1745922635877,-500.64325779,0.00035616,3]
[359323541,1745922635886,-599.64,0.00035616,3]
[359323542,1745922635896,-400.0,0.00035616,3]
[359323543,1745922635905,-203.10952452,0.00035616,3]
[359323544,1745922635914,-400.0,0.00035616,3]
[359323545,1745922635923,-438.8221612,0.00035616,3]
[359323546,1745922635932,-400.0,0.00035616,3]
[359323547,1745922635942,-400.0,0.00035616,3]
[359323548,1745922635953,-407.27291913,0.00035616,3]
[359323549,1745922635964,-400.0,0.00035616,3]
[359323550,1745922635975,-400.0,0.00035616,3]
[359323551,1745922635985,-1380.1,0.00035616,3]
[359323552,1745922635996,-400.0,0.00035616,3]
[359323553,1745922636006,-512.24,0.00035616,3]
[359323554,1745922636016,-400.0,0.00035616,3]
[359323555,1745922636029,-515.62593111,0.00035616,3]
[359323556,1745922636038,-210.56063152,0.00035616,3]
[359323557,1745922636049,-500.0,0.00035616,3]
[359323558,1745922636059,-883.94,0.00035616,3]
[359323559,1745922636073,-1010.76,0.00035616,3]
[359323560,1745922636084,-2127.15,0.00035616,3]
[359323561,1745922636093,-400.0,0.00035616,3]
[359323562,1745922636104,-400.0,0.00035616,3]
[359323563,1745922636114,-400.0,0.00035616,3]
[359323564,1745922636123,-1614.14,0.00035616,3]
[359323565,1745922636133,-218.623081,0.00035616,3]
[359323566,1745922636143,-404.01766485,0.00035616,3]
[359323567,1745922636154,-3238.76,0.00035616,3]
[359323568,1745922636164,-714.04,0.00035616,3]
[359323569,1745922636174,-1634.2,0.00035616,3]
[359323570,1745922636183,-2363.06,0.00035616,3]
[359323571,1745922636192,-424.54,0.00035616,3]
[359323572,1745922636202,-5143.41,0.00035616,3]
[359323573,1745922636213,-2597.03,0.00035616,3]
[359323574,1745922636222,-2033.23,0.00035616,3]
[359323575,1745922636234,-490.07319311,0.00035616,3]
[359323576,1745922636244,-7134.96,0.00035616,3]
[359323577,1745922636253,-677.76,0.00035616,3]
[359323578,1745922636262,-400.0,0.00035616,3]
[359323579,1745922636271,-400.0,0.00035616,3]
[359323580,1745922636280,-3603.37,0.00035616,3]
[359323581,1745922636290,-4706.28,0.00035616,3]
[359323582,1745922636300,-1254.33,0.00035616,3]
[359323583,1745922636311,-426.3,0.00035616,3]
[359323584,1745922636321,-723.16,0.00035616,3]
[359323585,1745922636332,-865.74,0.00035616,3]
[359323586,1745922636342,-1773.04,0.00035616,3]
[359323587,1745922636352,-400.0,0.00035616,3]
[359323588,1745922636362,-400.0,0.00035616,3]
[359323589,1745922636371,-400.0,0.00035616,3]
[359323590,1745922636381,-400.0,0.00035616,3]
[359323591,1745922636390,-400.0,0.00035616,3]
[359323592,1745922636399,-2435.5,0.00035616,3]
[359323593,1745922636407,-165.25111902,0.00035616,3]
[359323594,1745922636415,-564.86,0.00035616,3]
[359323595,1745922636423,-400.0,0.00035616,3]
[359323596,1745922636432,-400.0,0.00035616,3]
[359323597,1745922636442,-3151.5,0.00035616,3]
[359323598,1745922636452,-400.0,0.00035616,3]
[359323599,1745922636461,-400.0,0.00035616,3]
[359323600,1745922636471,-742.97,0.00035616,3]
[359323601,1745922636480,-1227.94,0.00035616,3]
[359323602,1745922636489,-229.20978738,0.00035616,3]
[359323603,1745922636499,-400.0,0.00035616,3]
[359323604,1745922636508,-304.5688189,0.00035616,3]
[359323605,1745922636518,-666.56,0.00035616,3]
[359323606,1745922636527,-717.92,0.00035616,3]
[359323607,1745922636536,-475.29,0.00035616,3]
[359323608,1745922636545,-400.0,0.00035616,3]
[359323609,1745922636555,-400.0,0.00035616,3]
[359323610,1745922636564,-428.83812434,0.00035616,3]
[359323611,1745922636573,-3134.31,0.00035616,3]
[359323612,1745922636583,-3020.07,0.00035616,2]
[359323613,1745922636592,-493.05,0.00035616,3]
[359323614,1745922636601,-2942.08,0.00035616,3]
[359323615,1745922636611,-1431.37,0.00035616,3]
[359323616,1745922636621,-155.06709217,0.00035616,3]
[359323617,1745922636630,-502.1626567,0.00035616,3]
[359323618,1745922636639,-2174.15,0.00035616,3]
[359323619,1745922636649,-400.0,0.00035616,3]
[359323620,1745922636658,-506.44961298,0.00035616,3]
[359323621,1745922636668,-186.00000006,0.00035616,7]
[359323622,1745922636678,-1258.98,0.00035616,3]
[359323623,1745922636688,-500.0,0.00035616,3]
[359323624,1745922636697,-1000.0,0.00035616,3]
[359323625,1745922636706,-400.0,0.00035616,3]
[359323626,1745922636715,-2539.40366537,0.00035616,3]
[359323627,1745922636735,-2260.16633463,0.00035616,3]
[359323628,1745922636745,-500.0,0.00035616,3]
[359323629,1745922636755,-400.0,0.00035616,3]
[359323630,1745922636764,-400.0,0.00035616,3]
[359323631,1745922636773,-500.0,0.00035616,3]
[359323632,1745922636782,-827.81,0.00035616,3]
[359323633,1745922636791,-413.96,0.00035616,3]
[359323634,1745922636800,-1506.91,0.00035616,3]
[359323635,1745922636809,-438.22,0.00035616,3]
[359323636,1745922636818,-10675.77,0.00035616,3]
[359323637,1745922636828,-872.94,0.00035616,3]
[359323638,1745922636838,-1784.51,0.00035616,3]
[359323639,1745922636847,-400.0,0.00035616,3]
[359323640,1745922636857,-2325.79,0.00035616,3]
[359323641,1745922636866,-3837.71,0.00035616,3]
[359323642,1745922636875,-839.66,0.00035616,3]
[359323643,1745922636884,-400.0,0.00035616,3]
[359323644,1745922636893,-3010.95,0.00035616,3]
[359323645,1745922636903,-501.87814863,0.00035616,3]
[359323646,1745922636912,-400.0,0.00035616,3]
[359323647,1745922636921,-500.0,0.00035616,3]
[359323648,1745922636930,-400.0,0.00035616,3]
[359323649,1745922636939,-400.0,0.00035616,3]
[359323650,1745922636948,-500.0,0.00035616,3]
[359323651,1745922636958,-400.0,0.00035616,3]
[359323652,1745922636968,-575.73,0.00035616,3]
[359323653,1745922636979,-400.0,0.00035616,3]
[359323654,1745922636990,-491.93,0.00035616,3]
[359323655,1745922636999,-400.0,0.00035616,3]
[359323656,1745922637011,-400.0,0.00035616,3]
[359323657,1745922637021,-400.0,0.00035616,3]
[359323658,1745922637031,-2936.77,0.00035616,3]
[359323659,1745922637040,-494.28396453,0.00035616,3]
[359323660,1745922637049,-400.0,0.00035616,3]
[359323661,1745922637059,-1464.34,0.00035616,3]
[359323662,1745922637068,-547.57,0.00035616,3]
[359323663,1745922637077,-400.0,0.00035616,3]
[359323664,1745922637086,-2162.08,0.00035616,3]
[359323665,1745922637095,-400.0,0.00035616,3]
[359323666,1745922637104,-417.89,0.00035616,3]
[359323667,1745922637113,-500.0,0.00035616,3]
[359323668,1745922637123,-7432.5,0.00035616,3]
[359323669,1745922637134,-400.0,0.00035616,3]
[359323670,1745922637145,-800.61,0.00035616,3]
[359323671,1745922637158,-500.0,0.00035616,3]
[359323672,1745922637167,-823.37,0.00035616,3]
[359323673,1745922637177,-547.95,0.00035616,3]
[359323674,1745922637186,-500.0,0.00035616,3]
[359323675,1745922637197,-1066.91,0.00035616,3]
[359323676,1745922637206,-605.37,0.00035616,3]
[359323677,1745922637216,-737.57,0.00035616,3]
[359323678,1745922637225,-505.82390333,0.00035616,3]
[359323679,1745922637236,-2924.1,0.00035616,3]
[359323680,1745922637246,-6748.07,0.00035616,3]
[359323681,1745922637255,-3413.95,0.00035616,3]
[359323682,1745922637265,-400.0,0.00035616,3]
[359323683,1745922637275,-3856.06,0.00035616,3]
[359323684,1745922637283,-400.0,0.00035616,3]
[359323685,1745922637292,-400.0,0.00035616,3]
[359323686,1745922637302,-400.0,0.00035616,3]
[359323687,1745922637310,-441.76,0.00035616,3]
[359323688,1745922637320,-211.52829867,0.00035616,3]
[359323690,1745922637329,-671.93,0.00035616,3]
[359323691,1745922637338,-400.0,0.00035616,3]
[359323692,1745922637347,-859.79,0.00035616,3]
[359323693,1745922637356,-400.0,0.00035616,3]
[359323694,1745922637365,-735.25,0.00035616,3]
[359323695,1745922637374,-917.71,0.00035616,3]
[359323696,1745922637383,-2487.24,0.00035616,3]
[359323697,1745922637392,-776.41,0.00035616,3]
[359323698,1745922637401,-2497.48,0.00035616,3]
[359323699,1745922637410,-400.0,0.00035616,3]
[359323700,1745922637420,-400.0,0.00035616,3]
[359323701,1745922637430,-991.74,0.00035616,3]
[359323702,1745922637439,-503.39124561,0.00035616,3]
[359323703,1745922637449,-400.0,0.00035616,3]
[359323704,1745922637460,-3202.95,0.00035616,3]
[359323705,1745922637475,-500.0,0.00035616,3]
[359323706,1745922637484,-1012.7,0.00035616,3]
[359323707,1745922637494,-2771.31,0.00035616,3]
[359323708,1745922637504,-521.30136521,0.00035616,3]
[359323709,1745922637513,-400.0,0.00035616,3]
[359323710,1745922637522,-1364.3,0.00035616,3]
[359323711,1745922637531,-400.0,0.00035616,3]
[359323712,1745922637541,-400.0,0.00035616,3]
[359323713,1745922637550,-500.0,0.00035616,3]
[359323714,1745922637560,-5522.48,0.00035616,3]
[359323715,1745922637570,-2717.23,0.00035616,3]
[359323716,1745922637579,-400.0,0.00035616,3]
[359323717,1745922637588,-1063.51,0.00035616,3]
[359323719,1745922637598,-400.0,0.00035616,3]
[359323721,1745922637607,-4521.44,0.00035616,3]
[359323723,1745922637616,-500.0,0.00035616,3]
[359323725,1745922637626,-583.82,0.00035616,3]
[359323727,1745922637635,-400.0,0.00035616,3]
[359323728,1745922637644,-879.15,0.00035616,3]
[359323730,1745922637654,-2032.66,0.00035616,3]
[359323731,1745922637664,-400.0,0.00035616,3]
[359323732,1745922637674,-2728.03,0.00035616,3]
[359323733,1745922637684,-503.12833937,0.00035616,3]
[359323734,1745922637693,-400.0,0.00035616,3]
[359323735,1745922637703,-400.0,0.00035616,3]
[359323736,1745922637712,-806.32,0.00035616,3]
[359323737,1745922637722,-400.0,0.00035616,3]
[359323738,1745922637731,-151.0,0.00035643,3]
[359323739,1745922637741,-338.22636484,0.00035653,2]
[359323740,1745922637751,-199.70282395,0.00035671,3]
[359323741,1745922637760,-237.25972672,0.00035673,5]
[359323742,1745922637769,-500.0,0.00035673,5]
[359323743,1745922637778,-500.0,0.00035673,5]
[359323744,1745922637788,-427.08186318,0.00035673,5]
[359323745,1745922637797,-649.43434654,0.00035673,5]
[359323746,1745922637806,-300.0,0.00035673,5]
[359323747,1745922637815,-500.0,0.00035673,5]
[359323748,1745922637824,-500.0,0.00035673,5]
[359323749,1745922637833,-500.0,0.00035673,5]
[359323750,1745922637843,-307.10108054,0.00035762,12]
[359323751,1745922637853,-338.22636484,0.0003579,2]
[359323752,1745922637862,-159.62677,0.00035827,2]
[359323753,1745922637871,-500.0,0.00035873,5]
[359323754,1745922637882,-500.0,0.00035873,5]
[359323755,1745922637891,-500.0,0.00035873,5]
[359323756,1745922637902,-500.0,0.00035873,5]
[359323757,1745922637911,-500.0,0.00035873,5]
[359323758,1745922637921,-500.0,0.00035873,5]
[359323759,1745922637930,-500.0,0.00035873,5]
[359323760,1745922637940,-441.95238376,0.0003589,3]
[359323761,1745922637951,-531.92130106,0.0003589,3]
[359323762,1745922637961,-400.0,0.0003589,3]
[359323763,1745922637971,-400.0,0.0003589,3]
[359323764,1745922637980,-510.85382546,0.0003589,3]
[359323765,1745922637990,-400.0,0.0003589,3]
[359323766,1745922638002,-400.0,0.0003589,3]